[Event "90th GER-ch 2019"]
[Site "Magdeburg"]
[Date "2019.05.28"]
[Round "4.7"]
[White "Becker, Marcel"]
[Black "Lubbe, Nikolas"]
[Result "1-0"]
[ECO "A70"]
[WhiteElo "2308"]
[BlackElo "2431"]
[Annotator "RC"]
[PlyCount "115"]
[EventDate "2019.05.26"]
[EventType "tourn"]
[EventCountry "GER"]
[SourceTitle "playchess.com"]
[Source "ChessBase"]
[SourceQuality "1"]
[TimeControl "40/5400+30:1800+30"]

1. d4 {[%emt 0:00:00]} Nf6 {[%emt 0:00:00]} 2. c4 {[%emt 0:00:00]} c5 {[%emt 0:00:00]} 3. d5 {[%emt 0:00:00]} e6 {[%emt 0:00:00]} 4. Nc3 {[%emt 0:00:07]} exd5 {[%emt 0:00:12]} 5. cxd5 {[%emt 0:00:22]} d6 {[%emt 0:00:08]} 6. e4 {[%emt 0:00:47]} g6 {[%emt 0:00:19]} 7. Nf3 {[%emt 0:01:15]} Bg7 {[%emt 0:00:29]} 8. h3 {[%emt 0:00:17]} O-O {[%emt 0:00:12]} 9. Bd3 {[%emt 0:00:07]} a6 {[%emt 0:00:16]} 10. a4 {[%emt 0:00:12]} Nbd7 {[%emt 0:00:19]} 11. O-O {[%emt 0:00:23]} Qe7 {[%emt 0:00:23]} 12. Re1 {[%emt 0:01:04]} Ne8 {[%emt 0:03:50]} 13. Bg5 {[%emt 0:04:07]} f6 {[%emt 0:02:04]} 14. Bf4 {[%emt 0:01:03]} Ne5 {[%emt 0:02:55]} 15. Bf1 {[%emt 0:04:08]} Nc7 {[%emt 0:05:10]} 16. Rb1 {[%emt 0:08:05]} a5 {[%emt 0:02:56]} 17. Nd2 {[%emt 0:02:39]} Na6 {[%emt 0:03:59]} 18. Bg3 {[%emt 0:09:11]} g5 {[%emt 0:01:17]} 19. Nc4 {[%emt 0:03:00]} Nb4 {[%emt 0:09:34]} 20. Nb5 {[%emt 0:02:57]} Rd8 {[%emt 0:10:18]} 21. Bxe5 {[%emt 0:03:51]} fxe5 {[%emt 0:10:08]} 22. Be2 {[%emt 0:01:57]} Ra6 {[%emt 0:02:09]} 23. Bg4 {[%emt 0:01:15]} Bxg4 {[%emt 0:01:19]} 24. hxg4 {[%emt 0:00:34]} Bf8 {[%emt 0:08:33]} 25. Ra1 {[%emt 0:01:55]} Raa8 {[%emt 0:05:03]} 26. Ra3 {[%emt 0:01:29]} Ra6 {[%emt 0:04:40]} 27. Rh3 {[%emt 0:03:29]} Rd7 {[%emt 0:00:29]} 28. Qd2 {[%emt 0:01:36]} Qd8 {[%emt 0:01:46]} 29. Rh5 {[%emt 0:02:00]} Rg7 {[%emt 0:00:11]} 30. g3 {[%emt 0:01:53]} Ra8 {[%emt 0:00:31]} 31. Kg2 {[%emt 0:00:38]} b6 {[%emt 0:01:04]} 32. Reh1 {[%emt 0:00:28]} Rb8 {[%emt 0:02:26]} 33. Ne3 {[%emt 0:03:25]} Rbb7 {[%emt 0:00:27]} 34. Nf5 {[%emt 0:02:04]} Rg6 {[%emt 0:00:08]} 35. b3 {[%emt 0:01:24]} Rd7 {[%emt 0:03:39]} 36. R1h2 {[%emt 0:00:59]} Na6 {[%emt 0:03:19]} 37. Na3 {[%emt 0:06:19]} Nc7 {[%emt 0:01:31]} 38. f3 {[%emt 0:04:09]} Ne8 {[%emt 0:03:23]} 39. Qc1 {[%emt 0:02:55]} Rb7 {[%emt 0:06:31]} 40. Rh1 {[%emt 0:05:22]} Kh8 {[%emt 0:02:21]} 41. Nb5 {[%emt 0:31:31]} Kg8 {[%emt 0:30:48]} 42. Qc4 {[%emt 0:00:39]} Nf6 {[%emt 0:01:18]} 43. R5h2 {[%emt 0:00:10]} Qd7 {[%emt 0:01:54]} 44. Na3 {[%emt 0:00:40]} Ra7 {[%emt 0:00:00]} 45. Qb5 {[%emt 0:00:00]} Qxb5 {[%emt 0:00:00]} 46. Nxb5 {[%emt 0:00:00]} Rd7 {[%emt 0:00:00]} 47. Ne3 {[%emt 0:00:00]} Rb7 {[%emt 0:00:00]} 48. Kf2 {[%emt 0:00:00]} Rgg7 {[%emt 0:00:00]} 49. Ke2 {[%emt 0:00:00]} Rgd7 {[%emt 0:00:00]} 50. Nf5 {[%emt 0:00:00]} Rb8 {[%emt 0:00:00]} 51. Kd3 {[%emt 0:00:00]} Kf7 {[%emt 0:00:00]} 52. Rxh7+ {[%emt 0:00:00]} Nxh7 {[%emt 0:00:00]} 53. Rxh7+ {[%emt 0:00:00]} Ke8 {[%emt 0:00:00]} 54. Rh8 {[%emt 0:00:00]} Kf7 {[%emt 0:00:00]} 55. Rh7+ {[%emt 0:00:00]} Ke8 {[%emt 0:00:00]} 56. Rh5 {[%emt 0:00:00]} Kf7 {[%emt 0:00:00]} 57. Rxg5 {[%emt 0:00:00]} Rbd8 {[%emt 0:00:00]} 58. Rh5 {[%emt 0:00:00]} 1-0

[Event "90th GER-ch 2019"]
[Site "Magdeburg"]
[Date "2019.05.28"]
[Round "4.10"]
[White "Pajeken, Jakob Leon"]
[Black "Trifan, Andrei Ioan"]
[Result "1/2-1/2"]
[ECO "A49"]
[WhiteElo "2359"]
[BlackElo "2268"]
[Annotator "ChessBase"]
[PlyCount "71"]
[EventDate "2019.05.26"]
[EventType "tourn"]
[EventCountry "GER"]
[SourceTitle "playchess.com"]
[Source "ChessBase"]
[SourceQuality "1"]
[TimeControl "40/5400+30:1800+30"]

1. d4 {[%emt 0:00:00]} Nf6 {[%emt 0:00:46]} 2. Nf3 {[%emt 0:00:00]} g6 {[%emt 0:01:02]} 3. g3 {[%emt 0:00:08]} Bg7 {[%emt 0:00:05]} 4. Bg2 {[%emt 0:00:27]} O-O {[%emt 0:01:06]} 5. O-O {[%emt 0:00:11]} d6 {[%emt 0:01:01]} 6. b3 {[%emt 0:00:16]} Nbd7 {[%emt 0:04:47]} 7. Bb2 {[%emt 0:00:19]} e5 {[%emt 0:01:40]} 8. dxe5 {[%emt 0:00:15]} Ng4 {[%emt 0:00:17]} 9. c4 {[%emt 0:00:28]} Ngxe5 {[%emt 0:02:28]} 10. Nxe5 {[%emt 0:00:49]} Nxe5 {[%emt 0:04:06]} 11. Qd2 {[%emt 0:02:51]} a5 {[%emt 0:07:34]} 12. Nc3 {[%emt 0:05:25]} a4 {[%emt 0:05:50]} 13. Nxa4 {[%emt 0:20:56]} Nxc4 {[%emt 0:07:32]} 14. bxc4 {[%emt 0:02:25]} Rxa4 {[%emt 0:00:41]} 15. Bxg7 {[%emt 0:00:17]} Kxg7 {[%emt 0:00:10]} 16. Bxb7 {[%emt 0:00:43]} Bxb7 {[%emt 0:03:51]} 17. Qb2+ {[%emt 0:00:13]} Kg8 {[%emt 0:01:48]} 18. Qxb7 {[%emt 0:00:08]} Rxc4 {[%emt 0:00:07]} 19. Qb3 {[%emt 0:09:26]} Rc5 {[%emt 0:09:21]} 20. Rfc1 {[%emt 0:01:20]} Rxc1+ {[%emt 0:03:28]} 21. Rxc1 {[%emt 0:00:05]} Qb8 {[%emt 0:01:44]} 22. Qd5 {[%emt 0:05:18]} Qa8 {[%emt 0:04:20]} 23. Qc4 {[%emt 0:00:55]} d5 {[%emt 0:00:48]} 24. Qg4 {[%emt 0:04:39]} Qxa2 {[%emt 0:01:33]} 25. Rxc7 {[%emt 0:00:06]} Qb1+ {[%emt 0:00:12]} 26. Kg2 {[%emt 0:00:21]} Qe4+ {[%emt 0:00:26]} 27. Qf3 {[%emt 0:00:11]} Re8 {[%emt 0:05:00]} 28. Rd7 {[%emt 0:02:33]} Re5 {[%emt 0:02:24]} 29. e3 {[%emt 0:00:44]} f5 {[%emt 0:01:19]} 30. h4 {[%emt 0:02:03]} h6 {[%emt 0:03:43]} 31. h5 {[%emt 0:01:49]} gxh5 {[%emt 0:08:04]} 32. Rd6 {[%emt 0:01:00]} Kh7 {[%emt 0:00:54]} 33. Rd8 {[%emt 0:01:40]} Kg7 {[%emt 0:01:11]} 34. Rd6 {[%emt 0:00:21]} Kh7 {[%emt 0:00:09]} 35. Rd8 {[%emt 0:00:19]} Kg7 {[%emt 0:00:42]} 36. Rd6 {[%emt 0:00:19]} 1/2-1/2

[Event "90th GER-ch 2019"]
[Site "Magdeburg"]
[Date "2019.05.28"]
[Round "4.11"]
[White "Schulz, Karsten"]
[Black "Maetzkow, Maximilian Paul"]
[Result "1/2-1/2"]
[ECO "A05"]
[WhiteElo "2227"]
[BlackElo "2338"]
[Annotator "ChessBase"]
[PlyCount "75"]
[EventDate "2019.05.26"]
[EventType "tourn"]
[EventCountry "GER"]
[SourceTitle "playchess.com"]
[Source "ChessBase"]
[SourceQuality "1"]
[TimeControl "40/5400+30:1800+30"]

1. Nf3 {[%emt 0:00:00]} Nf6 {[%emt 0:00:00]} 2. g3 {[%emt 0:00:00]} b6 {[%emt 0:00:00]} 3. Bg2 {[%emt 0:00:00]} Bb7 {[%emt 0:00:00]} 4. c4 {[%emt 0:00:00]} e6 {[%emt 0:00:00]} 5. b3 {[%emt 0:00:02]} Be7 {[%emt 0:00:05]} 6. Bb2 {[%emt 0:00:06]} O-O {[%emt 0:00:21]} 7. O-O {[%emt 0:00:09]} c5 {[%emt 0:00:39]} 8. Nc3 {[%emt 0:00:09]} d6 {[%emt 0:00:08]} 9. d3 {[%emt 0:00:08]} Nbd7 {[%emt 0:00:16]} 10. e4 {[%emt 0:00:09]} a6 {[%emt 0:00:40]} 11. Ng5 {[%emt 0:00:10]} Qc7 {[%emt 0:14:53]} 12. f4 {[%emt 0:00:14]} Bc6 {[%emt 0:09:14]} 13. g4 {[%emt 0:03:49]} b5 {[%emt 0:03:42]} 14. Nh3 {[%emt 0:01:13]} b4 {[%emt 0:01:18]} 15. Nb1 {[%emt 0:00:14]} d5 {[%emt 0:00:44]} 16. g5 {[%emt 0:07:31]} Ne8 {[%emt 0:01:55]} 17. Qh5 {[%emt 0:04:56]} dxe4 {[%emt 0:02:31]} 18. dxe4 {[%emt 0:01:17]} f5 {[%emt 0:45:49]} 19. Nd2 {[%emt 0:05:15]} g6 {[%emt 0:00:55]} 20. Qe2 {[%emt 0:00:23]} Rf7 {[%emt 0:01:50]} 21. Rad1 {[%emt 0:05:22]} Rd8 {[%emt 0:00:46]} 22. Rfe1 {[%emt 0:01:16]} Nd6 {[%emt 0:01:37]} 23. exf5 {[%emt 0:01:14]} exf5 {[%emt 0:00:09]} 24. Nf3 {[%emt 0:03:26]} Ne4 {[%emt 0:01:33]} 25. Ne5 {[%emt 0:02:45]} Nxe5 {[%emt 0:00:11]} 26. Bxe5 {[%emt 0:00:45]} Bd6 {[%emt 0:00:55]} 27. Bxe4 {[%emt 0:03:32]} Bxe4 {[%emt 0:02:58]} 28. Rxd6 {[%emt 0:12:05]} Rxd6 {[%emt 0:00:32]} 29. Bxd6 {[%emt 0:01:09]} Qxd6 {[%emt 0:00:07]} 30. Rd1 {[%emt 0:00:13]} Qc7 {[%emt 0:01:28]} 31. Qd2 {[%emt 0:01:27]} Re7 {[%emt 0:00:52]} 32. Qd8+ {[%emt 0:03:28]} Qxd8 {[%emt 0:01:32]} 33. Rxd8+ {[%emt 0:00:02]} Kg7 {[%emt 0:01:03]} 34. Kf2 {[%emt 0:02:17]} Bb1 {[%emt 0:01:38]} 35. Rd2 {[%emt 0:00:21]} Be4 {[%emt 0:00:08]} 36. Rd8 {[%emt 0:00:14]} Bb1 {[%emt 0:00:05]} 37. Rd2 {[%emt 0:00:10]} Be4 {[%emt 0:00:06]} 38. Rd8 {[%emt 0:00:22]} 1/2-1/2

[Event "90th GER-ch 2019"]
[Site "Magdeburg"]
[Date "2019.05.28"]
[Round "4.12"]
[White "Wachinger, Nikolas"]
[Black "Bastian, Herbert"]
[Result "1-0"]
[ECO "C65"]
[WhiteElo "2311"]
[BlackElo "2297"]
[Annotator "ChessBase"]
[PlyCount "69"]
[EventDate "2019.05.26"]
[EventType "tourn"]
[EventCountry "GER"]
[SourceTitle "playchess.com"]
[Source "ChessBase"]
[SourceQuality "1"]
[TimeControl "40/5400+30:1800+30"]

1. e4 {[%emt 0:00:00]} e5 {[%emt 0:00:48]} 2. Nf3 {[%emt 0:00:00]} Nc6 {[%emt 0:00:09]} 3. Bb5 {[%emt 0:00:00]} Nf6 {[%emt 0:00:41]} 4. d3 {[%emt 0:01:16]} d6 {[%emt 0:01:37]} 5. O-O {[%emt 0:01:34]} Be7 {[%emt 0:03:05]} 6. c3 {[%emt 0:05:07]} O-O {[%emt 0:00:14]} 7. Nbd2 {[%emt 0:00:13]} a6 {[%emt 0:02:21]} 8. Bxc6 {[%emt 0:05:31]} bxc6 {[%emt 0:00:09]} 9. d4 {[%emt 0:00:08]} exd4 {[%emt 0:04:06]} 10. cxd4 {[%emt 0:00:37]} d5 {[%emt 0:02:35]} 11. e5 {[%emt 0:11:47]} Ne4 {[%emt 0:08:48]} 12. Qc2 {[%emt 0:02:52]} Bf5 {[%emt 0:17:20]} 13. Qxc6 {[%emt 0:01:55]} Rb8 {[%emt 0:00:31]} 14. Qxa6 {[%emt 0:02:21]} Rb6 {[%emt 0:00:07]} 15. Qe2 {[%emt 0:01:02]} Rg6 {[%emt 0:00:08]} 16. Re1 {[%emt 0:03:33]} h5 {[%emt 0:16:30]} 17. Nf1 {[%emt 0:04:08]} h4 {[%emt 0:01:30]} 18. Ne3 {[%emt 0:01:42]} Be6 {[%emt 0:00:08]} 19. Nd2 {[%emt 0:00:38]} c5 {[%emt 0:04:57]} 20. Nxd5 {[%emt 0:07:35]} Bxd5 {[%emt 0:01:00]} 21. Nxe4 {[%emt 0:00:07]} cxd4 {[%emt 0:00:12]} 22. Qd3 {[%emt 0:02:50]} f5 {[%emt 0:03:18]} 23. exf6 {[%emt 0:00:49]} Bxf6 {[%emt 0:00:14]} 24. Bf4 {[%emt 0:06:48]} Qd7 {[%emt 0:04:40]} 25. h3 {[%emt 0:05:22]} Qf5 {[%emt 0:07:50]} 26. Bh2 {[%emt 0:02:24]} Bd8 {[%emt 0:07:46]} 27. Kh1 {[%emt 0:00:46]} Bb6 {[%emt 0:01:45]} 28. f3 {[%emt 0:00:35]} Rc8 {[%emt 0:02:37]} 29. b3 {[%emt 0:03:31]} Rc3 {[%emt 0:00:51]} 30. Nxc3 {[%emt 0:15:58]} Qxd3 {[%emt 0:02:28]} 31. Nxd5 {[%emt 0:00:02]} Ba5 {[%emt 0:03:33]} 32. Ne7+ {[%emt 0:02:06]} Kh7 {[%emt 0:00:38]} 33. Red1 {[%emt 0:00:11]} Qc2 {[%emt 0:01:08]} 34. Nxg6 {[%emt 0:00:10]} Qxg6 {[%emt 0:01:33]} 35. Rxd4 {[%emt 0:00:59]} 1-0

[Event "90th GER-ch 2019"]
[Site "Magdeburg"]
[Date "2019.05.28"]
[Round "4.13"]
[White "Schulz, Lukas"]
[Black "Moeller, Dustin"]
[Result "0-1"]
[ECO "B10"]
[WhiteElo "2302"]
[BlackElo "2156"]
[Annotator "ChessBase"]
[PlyCount "79"]
[EventDate "2019.05.26"]
[EventType "tourn"]
[EventCountry "GER"]
[SourceTitle "playchess.com"]
[Source "ChessBase"]
[SourceQuality "1"]
[TimeControl "40/5400+30:1800+30"]

1. e4 {[%emt 0:00:00]} c6 {[%emt 0:00:00]} 2. Nc3 {[%emt 0:00:05]} d5 {[%emt 0:00:00]} 3. g3 {[%emt 0:01:15]} d4 {[%emt 0:00:10]} 4. Nce2 {[%emt 0:00:22]} e5 {[%emt 0:00:07]} 5. d3 {[%emt 0:00:07]} Bd6 {[%emt 0:00:19]} 6. Bg2 {[%emt 0:00:31]} Nf6 {[%emt 0:00:32]} 7. f4 {[%emt 0:01:37]} c5 {[%emt 0:00:23]} 8. Nf3 {[%emt 0:01:50]} Nc6 {[%emt 0:00:11]} 9. O-O {[%emt 0:00:18]} O-O {[%emt 0:00:23]} 10. f5 {[%emt 0:05:13]} b5 {[%emt 0:00:06]} 11. h3 {[%emt 0:04:14]} a5 {[%emt 0:00:06]} 12. g4 {[%emt 0:01:14]} h6 {[%emt 0:00:06]} 13. g5 {[%emt 0:13:25]} hxg5 {[%emt 0:00:18]} 14. Bxg5 {[%emt 0:00:05]} Be7 {[%emt 0:01:52]} 15. Qe1 {[%emt 0:01:48]} Nh7 {[%emt 0:05:44]} 16. Bd2 {[%emt 0:02:41]} c4 {[%emt 0:04:15]} 17. Qg3 {[%emt 0:03:32]} Bf6 {[%emt 0:00:21]} 18. Kh1 {[%emt 0:08:01]} b4 {[%emt 0:06:30]} 19. h4 {[%emt 0:12:53]} Ba6 {[%emt 0:12:29]} 20. Ng5 {[%emt 0:01:26]} c3 {[%emt 0:06:02]} 21. bxc3 {[%emt 0:11:29]} bxc3 {[%emt 0:00:07]} 22. Nxh7 {[%emt 0:01:08]} Kxh7 {[%emt 0:04:14]} 23. Bg5 {[%emt 0:00:04]} Rh8 {[%emt 0:04:45]} 24. Ng1 {[%emt 0:05:45]} Bxg5 {[%emt 0:03:54]} 25. hxg5 {[%emt 0:00:08]} Kg8+ {[%emt 0:00:05]} 26. Bh3 {[%emt 0:00:16]} f6 {[%emt 0:07:51]} 27. Nf3 {[%emt 0:00:58]} Kf7 {[%emt 0:01:31]} 28. Rf2 {[%emt 0:04:06]} Ke7 {[%emt 0:02:21]} 29. Kh2 {[%emt 0:04:34]} Kd6 {[%emt 0:01:14]} 30. Rg1 {[%emt 0:00:30]} Ra7 {[%emt 0:04:59]} 31. Rfg2 {[%emt 0:01:18]} Kc5 {[%emt 0:05:16]} 32. Qe1 {[%emt 0:02:02]} Qe8 {[%emt 0:02:10]} 33. gxf6 {[%emt 0:03:15]} Qh5 {[%emt 0:01:14]} 34. Ng5 {[%emt 0:01:43]} gxf6 {[%emt 0:01:09]} 35. Ne6+ {[%emt 0:00:03]} Kd6 {[%emt 0:00:14]} 36. Rg3 {[%emt 0:00:39]} Rb7 {[%emt 0:03:32]} 37. a3 {[%emt 0:05:29]} Rb2 {[%emt 0:00:40]} 38. R1g2 {[%emt 0:01:36]} Bb5 {[%emt 0:04:38]} 39. Re2 {[%emt 0:02:10]} Ba4 {[%emt 0:01:50]} 40. Reg2 0-1

[Event "90th GER-ch 2019"]
[Site "Magdeburg"]
[Date "2019.05.28"]
[Round "4.14"]
[White "Heimrath, Reiner"]
[Black "Adiyaman, Rene"]
[Result "1-0"]
[ECO "A06"]
[WhiteElo "2239"]
[BlackElo "2175"]
[Annotator "ChessBase"]
[PlyCount "129"]
[EventDate "2019.05.26"]
[EventType "tourn"]
[EventCountry "GER"]
[SourceTitle "playchess.com"]
[Source "ChessBase"]
[SourceQuality "1"]
[TimeControl "40/5400+30:1800+30"]

1. Nf3 d5 2. g3 c6 3. Bg2 Nf6 4. O-O Bf5 5. d3 e6 6. Nbd2 h6 7. b3 Be7 8. Bb2 O-O 9. Qe1 Nbd7 10. e4 Bh7 11. Qe2 Nc5 12. Ne5 a5 13. a4 Nfd7 14. Nxd7 Nxd7 15. Rad1 Bf6 16. Ba3 Re8 17. f4 Rc8 18. Kh1 b5 19. e5 Be7 20. Ra1 Bxa3 21. Rxa3 b4 22. Raa1 c5 23. g4 Qc7 24. Rae1 Nb6 25. f5 exf5 26. gxf5 f6 27. e6 Re7 28. Qg4 Kh8 29. Re3 c4 30. Nf3 Qd8 31. Nd4 cxb3 32. cxb3 Rc3 33. Qf4 Qc7 34. Qh4 Qc5 35. h3 Nc8 36. Qf4 Nd6 37. Rg3 Qc7 38. Kh2 Rc5 39. Kg1 Ne8 40. Qf2 Nd6 41. Re3 Nxf5 42. Nxf5 Bxf5 43. d4 Rc3 44. Rxc3 Qxc3 45. Qxf5 Qe3+ 46. Kh1 Qxe6 47. Bxd5 Qe3 48. Rg1 Re8 49. Bc4 Re4 50. Qc8+ Re8 51. Qg4 Re7 52. Qg3 Qe4+ 53. Rg2 g5 54. Kh2 Kg7 55. Re2 Qb7 56. Rxe7+ Qxe7 57. Qb8 h5 58. Qg8+ Kh6 59. Qh8+ Kg6 60. Bd3+ f5 61. Qe5 Qd7 62. d5 Qf7 63. Qe6+ Qxe6 64. dxe6 Kf6 65. Bxf5 1-0

[Event "90th GER-ch 2019"]
[Site "Magdeburg"]
[Date "2019.05.28"]
[Round "4.15"]
[White "Dauth, Benjamin"]
[Black "Kardoeus, David"]
[Result "0-1"]
[ECO "B22"]
[WhiteElo "2295"]
[BlackElo "2202"]
[Annotator "ChessBase"]
[PlyCount "108"]
[EventDate "2019.05.26"]
[EventType "tourn"]
[EventCountry "GER"]
[SourceTitle "playchess.com"]
[Source "ChessBase"]
[SourceQuality "1"]
[TimeControl "40/5400+30:1800+30"]

1. e4 {[%emt 0:00:07]} c5 {[%emt 0:00:00]} 2. c3 {[%emt 0:00:58]} Nf6 {[%emt 0:00:38]} 3. d3 {[%emt 0:01:31]} Nc6 {[%emt 0:03:33]} 4. f4 {[%emt 0:00:52]} d5 {[%emt 0:06:12]} 5. e5 {[%emt 0:00:32]} Nd7 {[%emt 0:08:56]} 6. Nf3 {[%emt 0:01:05]} d4 {[%emt 0:03:02]} 7. Nbd2 {[%emt 0:01:17]} f6 {[%emt 0:00:23]} 8. e6 {[%emt 0:19:25]} Nb6 {[%emt 0:03:06]} 9. f5 {[%emt 0:01:10]} Qd5 {[%emt 0:05:58]} 10. g4 {[%emt 0:07:05]} dxc3 {[%emt 0:06:30]} 11. bxc3 {[%emt 0:00:04]} Ne5 {[%emt 0:08:12]} 12. c4 {[%emt 0:01:51]} Nxd3+ {[%emt 0:04:33]} 13. Bxd3 {[%emt 0:01:03]} Qxd3 {[%emt 0:00:11]} 14. Qb3 {[%emt 0:11:09]} Qxb3 {[%emt 0:10:53]} 15. axb3 {[%emt 0:00:31]} h5 {[%emt 0:00:07]} 16. g5 {[%emt 0:06:58]} g6 {[%emt 0:12:07]} 17. Ba3 {[%emt 0:01:01]} gxf5 {[%emt 0:06:02]} 18. Bxc5 {[%emt 0:00:07]} Rb8 {[%emt 0:00:08]} 19. Rxa7 {[%emt 0:06:58]} Na8 {[%emt 0:00:07]} 20. Be3 {[%emt 0:01:10]} Nc7 {[%emt 0:02:24]} 21. Bf4 {[%emt 0:00:49]} Ra8 {[%emt 0:00:08]} 22. Rxa8 {[%emt 0:15:49]} Nxa8 23. gxf6 {[%emt 0:00:11]} exf6 {[%emt 0:01:36]} 24. Nd4 {[%emt 0:00:28]} Rg8 {[%emt 0:01:30]} 25. Rf1 {[%emt 0:03:34]} Bb4 {[%emt 0:01:33]} 26. Be3 {[%emt 0:05:07]} Nc7 {[%emt 0:00:54]} 27. Rxf5 {[%emt 0:00:17]} Ke7 {[%emt 0:00:40]} 28. Rxh5 {[%emt 0:01:05]} Nxe6 {[%emt 0:01:01]} 29. Rh7+ {[%emt 0:04:03]} Kd6 {[%emt 0:00:02]} 30. Nxe6 {[%emt 0:00:37]} Kxe6 {[%emt 0:01:41]} 31. Kf2 {[%emt 0:00:38]} Ke5 {[%emt 0:00:52]} 32. Rh4 {[%emt 0:01:09]} Rg4 {[%emt 0:01:56]} 33. Rh8 {[%emt 0:00:53]} Bd7 {[%emt 0:00:10]} 34. Nf3+ {[%emt 0:00:57]} Ke4 {[%emt 0:00:22]} 35. Rd8 {[%emt 0:00:54]} Rg7 {[%emt 0:01:19]} 36. h4 {[%emt 0:01:18]} Bd6 {[%emt 0:01:13]} 37. h5 {[%emt 0:00:42]} Bg3+ {[%emt 0:00:01]} 38. Ke2 {[%emt 0:00:08]} Bc7 {[%emt 0:00:09]} 39. Nd2+ {[%emt 0:00:04]} Ke5 {[%emt 0:00:33]} 40. Rh8 {[%emt 0:01:06]} Bg4+ {[%emt 0:05:44]} 41. Kf2 {[%emt 0:30:58]} Ba5 {[%emt 0:33:11]} 42. Re8+ {[%emt 0:01:59]} Kf5 {[%emt 0:00:26]} 43. h6 {[%emt 0:00:12]} Rh7 {[%emt 0:01:07]} 44. Ne4 {[%emt 0:01:10]} Bc7 {[%emt 0:00:02]} 45. c5 {[%emt 0:02:19]} Bh5 {[%emt 0:00:41]} 46. Nxf6 {[%emt 0:00:00]} Kxf6 {[%emt 0:00:00]} 47. Rf8+ {[%emt 0:00:00]} Ke7 {[%emt 0:00:00]} 48. Ra8 {[%emt 0:00:00]} Rf7+ {[%emt 0:00:00]} 49. Ke1 {[%emt 0:00:00]} Kd7 {[%emt 0:00:00]} 50. b4 {[%emt 0:00:00]} Kc6 {[%emt 0:00:00]} 51. Rc8 {[%emt 0:00:00]} Kb5 {[%emt 0:00:00]} 52. Rg8 {[%emt 0:00:00]} Kxb4 {[%emt 0:00:00]} 53. Bd4 {[%emt 0:00:00]} Kc4 {[%emt 0:00:00]} 54. Bg7 {[%emt 0:00:00]} Ba5+ {[%emt 0:00:00]} 0-1

[Event "90th GER-ch 2019"]
[Site "Magdeburg"]
[Date "2019.05.29"]
[Round "5.4"]
[White "Polster, Christian"]
[Black "Kvetny, Mark"]
[Result "0-1"]
[ECO "C42"]
[WhiteElo "2236"]
[BlackElo "2414"]
[Annotator "RC"]
[PlyCount "62"]
[EventDate "2019.05.26"]
[EventType "tourn"]
[EventCountry "GER"]
[SourceTitle "playchess.com"]
[Source "ChessBase"]
[SourceQuality "1"]
[TimeControl "40/5400+30:1800+30"]

1. e4 {[%emt 0:00:00]} e5 {[%emt 0:00:00]} 2. Nf3 {[%emt 0:00:00]} Nf6 {[%emt 0:00:00]} 3. Nxe5 {[%emt 0:00:43]} d6 {[%emt 0:00:00]} 4. Nf3 {[%emt 0:00:08]} Nxe4 {[%emt 0:00:00]} 5. Nc3 {[%emt 0:00:09]} Nxc3 {[%emt 0:00:13]} 6. dxc3 {[%emt 0:00:06]} Be7 {[%emt 0:00:08]} 7. Be3 {[%emt 0:00:49]} O-O {[%emt 0:03:21]} 8. Qd2 {[%emt 0:03:36]} b6 {[%emt 0:01:30]} 9. O-O-O {[%emt 0:02:27]} Bb7 {[%emt 0:02:16]} 10. Nd4 {[%emt 0:07:53]} a6 {[%emt 0:07:18]} 11. c4 {[%emt 0:03:23]} Nd7 {[%emt 0:03:21]} 12. Kb1 {[%emt 0:01:32]} Re8 {[%emt 0:04:26]} 13. Nf5 {[%emt 0:03:33]} Bf6 {[%emt 0:03:09]} 14. h4 {[%emt 0:02:23]} b5 {[%emt 0:23:17]} 15. Bd4 {[%emt 0:16:31]} bxc4 {[%emt 0:05:59]} 16. Bxc4 {[%emt 0:03:54]} Ne5 {[%emt 0:03:01]} 17. Bf1 {[%emt 0:13:54]} c5 {[%emt 0:04:23]} 18. Be3 {[%emt 0:16:20]} d5 {[%emt 0:05:10]} 19. Bxc5 {[%emt 0:13:45]} Qc8 {[%emt 0:01:17]} 20. Qb4 {[%emt 0:02:26]} a5 {[%emt 0:09:42]} 21. Qb3 {[%emt 0:02:57]} Qxc5 {[%emt 0:03:41]} 22. Qxb7 {[%emt 0:01:15]} Reb8 {[%emt 0:00:24]} 23. Qxd5 {[%emt 0:00:44]} Rxb2+ {[%emt 0:00:18]} 24. Ka1 {[%emt 0:01:08]} Rxa2+ {[%emt 0:04:16]} 25. Kxa2 {[%emt 0:01:59]} Qxc2+ {[%emt 0:00:08]} 26. Ka3 {[%emt 0:00:50]} Nc4+ {[%emt 0:00:21]} 27. Qxc4 {[%emt 0:00:33]} Bb2+ {[%emt 0:00:12]} 28. Ka2 {[%emt 0:00:30]} Bc3+ {[%emt 0:00:07]} 29. Ka3 {[%emt 0:00:19]} Bb4+ {[%emt 0:00:42]} 30. Qxb4 {[%emt 0:00:26]} axb4+ {[%emt 0:00:02]} 31. Kxb4 {[%emt 0:00:11]} Qxd1 {[%emt 0:02:37]} 0-1